bitfinex/quotes_BTCUSD_20250902
["timestamp","ask_amount","ask_price","bid_price","bid_amount"]
[1756825720450,0.605022,111320.0,111310.0,0.22652]
[1756825720649,0.18013262,111320.0,111310.0,0.22652]
[1756825720852,0.605022,111320.0,111310.0,0.06336]
[1756825721264,1.02991138,111320.0,111310.0,0.06336]
[1756825721562,0.17969451,111300.0,111290.0,0.02093882]
[1756825721806,0.17969451,111300.0,111290.0,0.33925481]
[1756825722243,0.17969276,111310.0,111290.0,0.51896547]
[1756825722446,0.17969451,111300.0,111290.0,0.51896547]
[1756825722770,0.17969451,111300.0,111290.0,0.17617481]
[1756825722990,0.17969451,111300.0,111290.0,0.33913481]
[1756825723198,0.84056612,111300.0,111290.0,0.22628]
[1756825723627,0.84947769,111300.0,111290.0,0.22628]
[1756825723822,0.18860608,111300.0,111290.0,0.22628]
[1756825724254,0.84056437,111310.0,111290.0,0.51884547]
[1756825724445,0.17969276,111310.0,111290.0,0.51884547]
[1756825724701,0.84998734,111320.0,111300.0,0.02093882]
[1756825724916,0.19833846,111320.0,111310.0,0.1628]
[1756825725127,0.18911573,111320.0,111310.0,0.1628]
[1756825725334,0.18013262,111320.0,111310.0,0.27565481]
[1756825725548,0.00047039,111320.0,111310.0,0.45533318]
[1756825727515,0.00047039,111320.0,111310.0,0.46450951]
[1756825727920,0.00047039,111320.0,111310.0,0.45533318]
[1756825728780,0.00047039,111320.0,111310.0,0.46427387]
[1756825730106,0.00047039,111320.0,111310.0,1.46514548]
[1756825731525,0.00047039,111320.0,111310.0,1.46470548]
[1756825731733,0.00047039,111320.0,111310.0,1.86470548]
[1756825731977,0.00047039,111320.0,111310.0,1.70234548]
[1756825732213,0.00047039,111320.0,111310.0,1.86470548]
[1756825733146,0.00047039,111320.0,111310.0,1.70234548]
[1756825733391,0.00047039,111320.0,111310.0,1.86482548]
[1756825733692,0.00047039,111320.0,111310.0,2.12732548]
[1756825733908,0.00047039,111320.0,111310.0,2.22732548]
[1756825735052,0.0002,111330.0,111320.0,1.20147266]
[1756825735265,0.00034102,111330.0,111320.0,1.45670865]
[1756825735469,0.00034102,111330.0,111320.0,1.61886865]
[1756825735624,0.00034102,111330.0,111320.0,2.01886865]
[1756825736070,0.00034102,111330.0,111320.0,2.02246778]
[1756825737102,0.00034102,111330.0,111320.0,1.76030778]
[1756825737354,0.00034102,111330.0,111320.0,1.92226778]
[1756825737783,0.00034102,111330.0,111320.0,1.96866865]
[1756825737984,0.00034102,111330.0,111320.0,1.97226791]
[1756825738129,0.01034102,111330.0,111320.0,1.97226791]
[1756825738330,0.01034102,111330.0,111320.0,1.97218791]
[1756825739049,0.01034102,111330.0,111320.0,1.86030791]
[1756825739291,0.0002,111350.0,111340.0,1.20144039]
[1756825739513,0.0002,111350.0,111340.0,1.65303638]
[1756825739767,0.66107161,111350.0,111320.0,0.00359926]
[1756825739998,0.22047859,111350.0,111330.0,0.1618]
[1756825740224,0.17981575,111350.0,111330.0,0.34144427]
[1756825740450,0.0002,111350.0,111330.0,0.34144399]
[1756825740679,0.0002,111350.0,111340.0,0.33486595]
[1756825740918,0.17981383,111350.0,111340.0,0.17617481]
[1756825741901,0.17981383,111350.0,111340.0,0.33813481]
[1756825742355,0.84068544,111350.0,111340.0,0.33813481]
[1756825742825,0.19652008,111350.0,111340.0,0.33813481]
[1756825743276,0.19652008,111350.0,111340.0,0.24621882]
[1756825744696,0.01690625,111350.0,111340.0,0.51776477]
[1756825745639,0.01690625,111350.0,111340.0,1.51863638]
[1756825746342,0.0002,111350.0,111340.0,1.51863638]
[1756825746571,0.0002,111350.0,111340.0,0.69580477]
[1756825746798,0.01691455,111350.0,111340.0,0.85788477]
[1756825747021,0.01691455,111350.0,111340.0,1.25788477]
[1756825747506,0.01691455,111350.0,111340.0,1.96875638]
[1756825747754,0.0002,111350.0,111340.0,1.96875638]
[1756825747984,0.0002,111350.0,111340.0,1.80667638]
[1756825748190,0.0002,111350.0,111340.0,1.96887638]
[1756825749030,0.0002,111350.0,111340.0,1.91887638]
[1756825749237,0.0002,111350.0,111340.0,1.75667638]
[1756825749466,0.0002,111350.0,111340.0,1.91875638]
[1756825749670,0.0002,111360.0,111350.0,0.86142426]
[1756825749853,0.0002,111360.0,111350.0,0.95334025]
[1756825750256,0.0002,111360.0,111350.0,1.35334025]
[1756825750791,0.0002,111360.0,111350.0,0.69246864]
[1756825750993,0.0002,111360.0,111350.0,0.85462864]
[1756825751574,0.0002,111380.0,111370.0,0.20052039]
[1756825751575,1e-08,111380.0,111370.0,0.20052039]
[1756825751808,0.00014093,111380.0,111370.0,1.37650799]
[1756825752635,0.00014093,111380.0,111370.0,1.21446799]
[1756825753023,0.00014093,111380.0,111370.0,1.38548288]
[1756825753234,0.00014093,111380.0,111370.0,1.41246788]
[1756825753646,1.07441792,111430.0,111420.0,0.17950098]
[1756825753909,1.07441792,111430.0,111420.0,0.45431579]
[1756825753910,0.02518781,111430.0,111420.0,0.45431579]
[1756825754725,0.0002,111440.0,111430.0,0.54042369]
[1756825754966,0.00066955,111440.0,111430.0,1.39719876]
[1756825755213,0.00066955,111440.0,111430.0,0.73632715]
[1756825755443,0.00066955,111440.0,111430.0,0.89832715]
[1756825755633,0.51948487,111430.0,111420.0,0.02697477]
[1756825755827,0.00897504,111420.0,111390.0,0.3415086]
[1756825756033,0.66087161,111400.0,111390.0,0.09191599]
[1756825756257,0.66087161,111400.0,111390.0,0.43362532]
[1756825756738,0.03461926,111420.0,111400.0,0.1795267]
[1756825756955,0.66087161,111410.0,111400.0,0.43352269]
[1756825757160,0.8403887,111410.0,111400.0,0.25399599]
[1756825757372,0.52846041,111430.0,111400.0,0.43367012]
[1756825757373,0.34,111430.0,111400.0,0.43367012]
[1756825757585,0.51948531,111430.0,111410.0,0.27143308]
[1756825758092,0.84037259,111420.0,111410.0,0.16216]
[1756825759032,0.17950098,111420.0,111410.0,0.16216]
[1756825759458,0.01,111430.0,111420.0,0.2004398]
[1756825759666,0.18948487,111430.0,111420.0,0.2004398]
[1756825760315,0.01,111430.0,111420.0,0.45439579]
[1756825760767,0.18948487,111430.0,111420.0,0.11285481]
[1756825760987,0.85035648,111430.0,111420.0,0.27493481]
[1756825761884,0.17951144,111420.0,111400.0,0.37747405]
[1756825762101,0.84038305,111420.0,111410.0,0.27481481]
[1756825762310,0.17951144,111420.0,111410.0,0.11285481]
[1756825762576,0.17951709,111410.0,111400.0,0.00014092]
[1756825762794,1.1803887,111410.0,111400.0,0.00014092]
[1756825763240,1.19962826,111410.0,111400.0,0.00014092]
[1756825763465,1.1803887,111410.0,111400.0,0.00014092]
[1756825764193,1.1887488,111410.0,111400.0,0.00014092]
[1756825764918,0.54712256,111410.0,111400.0,0.00014092]
[1756825765126,1.20799417,111410.0,111400.0,0.00014092]
[1756825765589,1.1987488,111410.0,111400.0,0.00014092]
[1756825766004,0.8587488,111410.0,111400.0,0.11299573]
[1756825766186,0.18951709,111410.0,111400.0,0.29252894]
[1756825766895,0.01,111410.0,111400.0,0.29252894]
[1756825769844,0.01,111410.0,111400.0,1.01668055]
[1756825770260,0.01,111410.0,111400.0,0.35580894]
[1756825770694,0.01,111410.0,111400.0,1.35668055]
[1756825771516,0.01,111410.0,111400.0,0.67487012]
[1756825771723,0.01,111410.0,111400.0,0.49763012]
[1756825772491,0.18951709,111410.0,111400.0,0.15533691]
[1756825772708,0.18951709,111410.0,111400.0,0.31909691]
[1756825772942,0.8503887,111410.0,111400.0,0.31909691]
[1756825773159,0.8503887,111410.0,111400.0,0.15533691]
[1756825773363,0.8503887,111410.0,111400.0,0.31905691]
[1756825773593,0.8503887,111410.0,111400.0,0.33999573]
[1756825774223,0.18951709,111410.0,111400.0,0.09205691]
[1756825774441,0.85877546,111410.0,111400.0,0.00014092]
[1756825774616,0.9011359,111410.0,111400.0,0.18463974]
[1756825774831,0.88436339,111410.0,111400.0,0.18463974]
[1756825775596,1.42876223,111410.0,111400.0,0.00014092]
[1756825775821,1.52870473,111410.0,111400.0,0.00014092]
[1756825776035,1.57011421,111410.0,111400.0,0.00014092]
[1756825776245,0.71159771,111410.0,111400.0,0.00014092]
[1756825776446,1.53598932,111410.0,111400.0,0.00014092]
[1756825776626,1.64282686,111410.0,111400.0,0.00014092]
[1756825776824,1.64282188,111410.0,111400.0,0.00014092]
[1756825777030,1.70713035,111410.0,111400.0,0.00014092]
[1756825777416,1.68242062,111410.0,111400.0,0.00014092]
[1756825777889,0.00897988,111360.0,111330.0,0.1978]
[1756825778025,0.17964609,111330.0,111320.0,0.17942631]
[1756825778218,0.17964609,111330.0,111320.0,0.07354631]
[1756825778531,0.17964609,111330.0,111320.0,0.07368723]
[1756825778532,0.8405177,111330.0,111320.0,0.07368723]
[1756825779593,0.8405177,111330.0,111320.0,0.02107974]
[1756825779799,0.8405177,111330.0,111320.0,0.00014092]
[1756825779997,0.84050157,111340.0,111320.0,0.27171914]
[1756825780204,0.17964609,111330.0,111320.0,0.43567914]
[1756825780391,0.84050157,111340.0,111320.0,0.45661796]
[1756825780791,0.17964609,111330.0,111320.0,0.45661796]
[1756825781191,0.8405177,111330.0,111320.0,0.27695573]
[1756825781668,0.8405177,111330.0,111320.0,0.45661796]
[1756825782416,0.8405177,111330.0,111320.0,0.11299573]
[1756825782628,0.8405177,111330.0,111320.0,0.02107974]
[1756825782844,0.8405177,111330.0,111320.0,0.16410092]
[1756825783494,0.60412508,111330.0,111320.0,0.16410092]
[1756825784777,0.60412508,111330.0,111320.0,0.00014092]
[1756825784984,1.36860407,111330.0,111320.0,0.00014092]
[1756825785430,1.10784508,111330.0,111320.0,0.00014092]
[1756825785640,1.10788508,111330.0,111320.0,0.00014092]
[1756825786063,0.68336609,111330.0,111320.0,0.00014092]
[1756825786267,0.94412508,111330.0,111320.0,0.00014092]
[1756825788353,1.10760508,111330.0,111320.0,0.00014092]
[1756825789681,1.53208407,111330.0,111320.0,0.00014092]
[1756825790102,1.10760508,111330.0,111320.0,0.00014092]
[1756825790515,1.53208407,111330.0,111320.0,0.00014092]
[1756825790767,0.51964609,111330.0,111320.0,0.00014092]
[1756825790978,0.94412508,111330.0,111320.0,0.00014092]
[1756825791737,0.51964609,111330.0,111320.0,0.00014092]
[1756825791941,0.94412508,111330.0,111320.0,0.00014092]
[1756825793014,0.94412508,111330.0,111320.0,0.17980315]
[1756825793015,0.17964609,111330.0,111320.0,0.17980315]
[1756825793196,0.17964609,111330.0,111320.0,0.27631573]
[1756825793327,0.60412508,111330.0,111320.0,0.27631573]
[1756825793530,0.60412508,111330.0,111320.0,0.11299573]
[1756825793759,0.60412508,111330.0,111320.0,0.16354092]
[1756825793961,0.60412508,111330.0,111320.0,0.00014092]
[1756825794804,1.02860407,111330.0,111320.0,0.00014092]
[1756825795005,0.60412508,111330.0,111320.0,0.00014092]
[1756825797065,0.94412508,111330.0,111320.0,0.00014092]
[1756825798885,1.10728508,111330.0,111320.0,0.00014092]
[1756825799604,0.51964609,111330.0,111320.0,0.00014092]
[1756825799808,0.94412508,111330.0,111320.0,0.00014092]
[1756825800699,0.60412508,111330.0,111320.0,0.00014092]
[1756825801135,0.60412508,111330.0,111320.0,0.17980315]
[1756825801344,0.60412508,111330.0,111320.0,0.20074197]
[1756825801571,0.60412508,111330.0,111320.0,0.02107974]
[1756825801801,0.60412508,111330.0,111320.0,0.20074197]
[1756825802279,0.60412508,111330.0,111320.0,0.02107974]
[1756825803131,0.60412508,111330.0,111320.0,0.18403974]
[1756825803349,0.60412508,111330.0,111320.0,0.02107974]
[1756825803574,0.60412508,111330.0,111320.0,0.18391974]
[1756825804023,0.60412508,111330.0,111320.0,0.36358197]
[1756825804242,0.60412508,111330.0,111320.0,0.18391974]
[1756825804482,0.60412508,111330.0,111320.0,0.36358197]
[1756825804922,0.17964609,111330.0,111320.0,0.36358197]
[1756825805138,0.60412508,111330.0,111320.0,0.36358197]
[1756825805324,0.60412508,111330.0,111320.0,0.02107974]
[1756825805529,0.64020275,111330.0,111320.0,0.36354197]
[1756825805802,0.03607767,111330.0,111320.0,0.45545796]
[1756825806043,0.02412133,111360.0,111350.0,0.17961383]
[1756825806291,0.18798535,111360.0,111350.0,0.45522864]
[1756825806528,0.20782375,111360.0,111350.0,0.45522864]
[1756825806747,0.20782375,111360.0,111350.0,0.29246864]
[1756825806959,0.20782375,111360.0,111350.0,0.11285481]
[1756825807178,0.21621059,111360.0,111350.0,0.29246864]
[1756825807622,0.20782375,111360.0,111350.0,0.27557481]
[1756825807749,0.21621303,111360.0,111350.0,0.11285481]
[1756825807961,0.21621303,111360.0,111350.0,0.27557481]
[1756825808185,0.64069202,111360.0,111350.0,0.11285481]
[1756825808401,0.17961383,111350.0,111340.0,0.08425882]
[1756825808614,0.63181323,111350.0,111340.0,0.45520477]
[1756825808827,0.20733424,111350.0,111340.0,0.45520477]
[1756825809298,0.20733424,111350.0,111340.0,0.11285481]
[1756825809495,0.62342395,111350.0,111340.0,0.11285481]
[1756825809765,0.19894496,111350.0,111340.0,0.27553481]
[1756825810088,0.62342395,111350.0,111340.0,0.27553481]
[1756825810517,0.01933113,111350.0,111340.0,0.45516477]
[1756825810722,0.66643505,111360.0,111350.0,0.02093882]
[1756825810931,0.67481691,111360.0,111350.0,0.02093882]
[1756825811148,0.24144402,111360.0,111350.0,0.29246864]
[1756825811358,0.02934211,111360.0,111350.0,0.35578864]
[1756825811564,0.01,111360.0,111350.0,0.35578864]
[1756825812876,0.61407669,111360.0,111350.0,0.17617481]
[1756825813083,0.61407669,111360.0,111350.0,0.33913481]
[1756825813344,0.61407669,111360.0,111350.0,0.17617481]
[1756825813548,0.1895977,111360.0,111350.0,0.51878864]
[1756825813748,0.01,111360.0,111350.0,0.51878864]
[1756825813983,0.1895977,111360.0,111350.0,0.17617481]
[1756825814166,0.61407669,111360.0,111350.0,0.17617481]
[1756825814654,0.61407669,111360.0,111350.0,0.11285481]
[1756825814829,0.61407669,111360.0,111350.0,0.27581481]
[1756825815041,1.05783754,111360.0,111350.0,0.18385882]
[1756825815248,0.17962996,111340.0,111330.0,0.06332]
[1756825815452,0.60410895,111340.0,111330.0,0.49780208]
[1756825815605,0.60410895,111340.0,111330.0,0.5187409]
[1756825815831,0.60410895,111340.0,111320.0,0.00014092]
[1756825816029,0.60412508,111330.0,111320.0,0.09205691]
[1756825816230,0.60412508,111330.0,111320.0,0.00014092]
[1756825816431,0.60412508,111330.0,111320.0,0.16302092]
[1756825816809,0.62339789,111330.0,111320.0,0.16302092]
[1756825817008,0.60412508,111330.0,111320.0,0.00014092]
[1756825817358,0.96967131,111330.0,111320.0,0.00014092]
[1756825817558,0.99379264,111330.0,111320.0,0.00014092]
[1756825818038,0.56931365,111330.0,111320.0,0.00014092]
[1756825818242,0.99379264,111330.0,111320.0,0.00014092]
[1756825818456,1.42663608,111330.0,111320.0,0.00014092]
[1756825818658,1.5773532,111330.0,111320.0,0.00014092]
[1756825819258,1.76427454,111330.0,111320.0,0.00014092]
[1756825819440,1.68935252,111330.0,111320.0,0.00014092]
[1756825819656,1.73759519,111330.0,111320.0,0.00014092]
[1756825819864,1.57483519,111330.0,111320.0,0.00014092]
[1756825820064,1.73751519,111330.0,111320.0,0.00014092]
[1756825820440,1.68923252,111330.0,111320.0,0.00014092]
[1756825821123,0.84027454,111330.0,111320.0,0.00014092]
[1756825821350,1.68923252,111330.0,111320.0,0.00014092]
[1756825821539,1.52659252,111330.0,111320.0,0.00014092]
[1756825821951,1.55067041,111330.0,111320.0,0.00014092]
[1756825822389,1.19679543,111330.0,111320.0,0.00014092]
[1756825822618,1.00211365,111330.0,111320.0,0.00014092]
[1756825823856,1.06128704,111330.0,111320.0,0.00014092]
[1756825824063,1.19160526,111330.0,111320.0,0.00014092]
[1756825824267,1.02912526,111330.0,111320.0,0.00014092]
[1756825824904,0.97803576,111330.0,111320.0,0.00014092]
[1756825825138,0.62967131,111330.0,111320.0,0.00014092]
[1756825825343,0.60412508,111330.0,111320.0,0.34236315]
[1756825825543,0.17964609,111330.0,111320.0,0.45521796]
[1756825825781,0.60410895,111340.0,111330.0,0.20058491]
[1756825825782,0.17962996,111340.0,111330.0,0.20058491]
[1756825825995,0.18860896,111350.0,111330.0,0.2925009]
[1756825826167,0.19697176,111350.0,111340.0,0.16248]
[1756825826391,0.18860896,111350.0,111340.0,0.18341882]
[1756825826518,0.61308795,111350.0,111340.0,0.18341882]
[1756825826918,0.61308795,111350.0,111340.0,0.02093882]
[1756825827142,0.61308795,111350.0,111330.0,0.09191599]
[1756825827143,0.17962996,111340.0,111330.0,0.11285481]
[1756825827369,0.60410895,111340.0,111330.0,0.27537481]
[1756825827576,0.60410895,111340.0,111330.0,0.27541481]
[1756825827786,0.60410895,111340.0,111330.0,0.11285481]
[1756825827995,0.60410895,111340.0,111330.0,0.27537481]
[1756825828664,0.60410895,111340.0,111330.0,0.11285481]
[1756825828877,0.60410895,111340.0,111330.0,0.16252]
[1756825829294,0.17964609,111330.0,111320.0,0.26406149]
[1756825829502,0.60412508,111330.0,111320.0,0.51841748]
[1756825829998,0.60412508,111330.0,111320.0,0.06346092]
[1756825830219,1.36860407,111330.0,111320.0,0.00014092]
[1756825830424,1.55030865,111330.0,111320.0,0.00014092]
[1756825830849,1.76705375,111330.0,111320.0,0.00014092]
[1756825831067,1.70758035,111330.0,111320.0,0.00014092]
[1756825832307,1.53677565,111330.0,111320.0,0.00014092]
[1756825832519,1.69953565,111330.0,111320.0,0.00014092]
[1756825833411,1.9239705,111330.0,111320.0,1e-08]
[1756825833763,1.82069353,111330.0,111320.0,1e-08]
[1756825833967,1.90657109,111330.0,111320.0,1e-08]
[1756825834153,2.06281064,111330.0,111320.0,1e-08]
[1756825834361,2.04659628,111330.0,111320.0,1e-08]
[1756825834531,1.88387628,111330.0,111320.0,1e-08]
[1756825834736,2.04655628,111330.0,111320.0,1e-08]
[1756825835286,1.88387628,111330.0,111320.0,1e-08]
[1756825835479,1.99889811,111330.0,111320.0,1e-08]
[1756825835607,1.72718879,111330.0,111320.0,1e-08]
[1756825835806,1.32643384,111330.0,111320.0,1e-08]
[1756825836012,1.17009471,111330.0,111320.0,1e-08]
[1756825836214,1.64242464,111330.0,111320.0,1e-08]
[1756825836472,1.66925783,111330.0,111320.0,1e-08]
[1756825836676,1.64242464,111330.0,111320.0,1e-08]
[1756825837388,0.69604107,111330.0,111320.0,1e-08]
[1756825837590,0.60412508,111330.0,111320.0,1e-08]
[1756825837993,0.94412508,111330.0,111320.0,1e-08]
[1756825838194,0.60412508,111330.0,111320.0,1e-08]
[1756825838401,1.36860407,111330.0,111320.0,1e-08]
[1756825838605,0.60412508,111330.0,111320.0,1e-08]
[1756825838818,0.94412508,111330.0,111320.0,1e-08]
[1756825839017,0.51964609,111330.0,111320.0,1e-08]
[1756825839219,0.17964609,111330.0,111320.0,0.02093883]
[1756825839599,0.60412508,111330.0,111320.0,0.02093883]
[1756825839793,0.18962996,111340.0,111320.0,0.20060106]
[1756825839998,0.18962996,111340.0,111330.0,0.20058491]
[1756825840259,0.18962996,111340.0,111330.0,0.02093882]
[1756825840616,0.61410895,111340.0,111330.0,0.02093882]
[1756825841195,0.61410895,111340.0,111330.0,0.20058491]
[1756825841600,0.61410895,111340.0,111330.0,0.02093882]
[1756825842372,0.61410895,111340.0,111330.0,0.18357882]
[1756825842807,0.01,111340.0,111330.0,0.4551409]
[1756825843430,0.18962996,111340.0,111330.0,0.4551409]
[1756825843879,0.01,111340.0,111330.0,0.4550209]
[1756825844085,0.18962996,111340.0,111330.0,0.2925009]
[1756825844298,0.01,111340.0,111330.0,0.4550209]
[1756825845307,0.01,111340.0,111330.0,0.87949989]
[1756825845514,0.01,111340.0,111330.0,1.65278875]
[1756825845924,0.01,111340.0,111330.0,1.65274875]
[1756825846554,0.01,111340.0,111330.0,0.9929409]
[1756825847053,0.01,111340.0,111330.0,1.65274875]
[1756825847469,0.01,111340.0,111330.0,1.3927809]
[1756825847938,0.01,111340.0,111330.0,1.3927409]
[1756825848566,0.01,111340.0,111330.0,2.10254875]
[1756825849425,0.07354631,111390.0,111380.0,0.20050427]
[1756825849636,0.07354631,111390.0,111380.0,0.51794026]
[1756825849637,0.25309564,111390.0,111380.0,0.51794026]
[1756825849846,0.07354631,111390.0,111380.0,0.51794026]
[1756825850076,0.17954933,111390.0,111380.0,0.51786026]
[1756825850651,0.17967578,111390.0,111380.0,0.51786026]
[1756825850850,0.00012645,111390.0,111380.0,0.51786026]
[1756825851060,0.00012645,111390.0,111380.0,1.51766811]
[1756825851317,0.00012645,111390.0,111380.0,1.52686946]
[1756825851704,0.00012645,111390.0,111380.0,1.36474946]
[1756825851883,0.00012645,111390.0,111380.0,1.52686946]
[1756825852869,0.00012645,111390.0,111380.0,0.70494161]
[1756825853069,0.00012645,111390.0,111380.0,1.72470946]
[1756825853622,0.00012645,111390.0,111380.0,1.82470946]
[1756825853929,0.00012645,111390.0,111380.0,1.85160869]
[1756825854538,0.00012645,111390.0,111380.0,2.08960869]
[1756825855044,0.01012645,111390.0,111380.0,2.25156869]
[1756825855560,0.01012645,111390.0,111380.0,2.25152869]
[1756825855768,0.01012645,111390.0,111380.0,2.29219376]
[1756825856112,0.01012645,111390.0,111380.0,1.47046591]
[1756825856360,0.01012645,111390.0,111380.0,2.08027376]
[1756825856573,0.01012645,111390.0,111380.0,1.37046591]
[1756825856774,0.01012645,111390.0,111380.0,2.21517453]
[1756825858539,0.01012645,111390.0,111380.0,2.21529453]
[1756825859091,0.01012645,111390.0,111380.0,2.26529453]
[1756825859416,0.01012645,111390.0,111380.0,2.10329453]
[1756825859641,0.01012645,111390.0,111380.0,2.26521453]
[1756825861356,0.01012645,111390.0,111380.0,1.44348668]
[1756825861538,0.01012645,111390.0,111380.0,0.92254786]
[1756825861773,0.01012645,111390.0,111380.0,1.08434786]
[1756825862162,0.01012645,111390.0,111380.0,1.15608533]
[1756825862372,0.18967578,111390.0,111380.0,0.53268144]
[1756825862589,0.01012645,111390.0,111380.0,0.69444144]
[1756825862792,0.01012645,111390.0,111380.0,1.03444144]
[1756825862994,0.18967578,111390.0,111380.0,1.03452144]
[1756825863224,0.01012645,111390.0,111380.0,0.87268144]
[1756825863433,0.01012645,111390.0,111380.0,1.03452144]
[1756825863644,0.01012645,111390.0,111380.0,1.05546026]
[1756825864050,0.18967578,111390.0,111380.0,0.53268144]
[1756825864254,0.84948363,111390.0,111380.0,0.15523599]
[1756825864484,0.84948363,111390.0,111380.0,0.06332]
[1756825864710,0.84948363,111390.0,111360.0,0.06328]
[1756825864711,0.17959683,111370.0,111360.0,0.06328]
[1756825864926,0.83940468,111370.0,111360.0,0.31711599]
[1756825865158,0.1885735,111380.0,111360.0,0.49671178]
[1756825865374,0.17959523,111380.0,111370.0,0.27149756]
[1756825865606,0.83940308,111380.0,111370.0,0.11285481]
[1756825865954,0.18967578,111390.0,111370.0,0.11285481]
[1756825866170,0.01012645,111390.0,111380.0,0.36238427]
[1756825866368,0.01012645,111390.0,111380.0,0.45430026]
[1756825866567,0.18967578,111390.0,111380.0,0.45430026]
[1756825867392,0.18967578,111390.0,111380.0,0.27473481]
[1756825867589,0.18967578,111390.0,111380.0,0.45430026]
[1756825867790,0.01012645,111390.0,111380.0,0.45430026]
[1756825867996,0.01012645,111390.0,111380.0,1.11410811]
[1756825868236,0.01012645,111390.0,111380.0,0.45418026]
[1756825868493,0.01012645,111390.0,111380.0,0.29242026]
[1756825868656,0.01012645,111390.0,111380.0,0.45422026]
[1756825869984,0.01012645,111390.0,111380.0,0.29242026]
[1756825870189,0.01012645,111390.0,111380.0,0.45410026]
[1756825870417,0.84948363,111390.0,111380.0,0.09191599]
[1756825870691,0.84948363,111390.0,111380.0,0.25363599]
[1756825871080,0.84948363,111390.0,111380.0,0.27457481]
[1756825871281,0.17957453,111380.0,111360.0,0.65185515]
[1756825871500,0.83938238,111380.0,111370.0,0.09191599]
[1756825871712,0.17958157,111370.0,111360.0,0.06328]
[1756825871919,0.83938238,111380.0,111360.0,0.49655369]
[1756825871920,0.17957453,111380.0,111360.0,0.49655369]
[1756825872343,0.17958157,111370.0,111360.0,0.49655369]
[1756825872547,0.17958157,111370.0,111360.0,0.51749251]
[1756825873014,0.83938942,111370.0,111360.0,0.15519599]
[1756825873226,0.83938942,111370.0,111360.0,0.49647369]
[1756825873227,0.17958157,111370.0,111360.0,0.49647369]
[1756825873437,0.19865324,111390.0,111370.0,0.17958137]
[1756825873644,0.22629604,111390.0,111380.0,0.16172]
[1756825873847,0.19865324,111390.0,111380.0,0.27457481]
[1756825874098,0.19865324,111390.0,111380.0,0.45414026]
[1756825874313,0.19865324,111390.0,111380.0,0.27457481]
[1756825874775,0.84948363,111390.0,111380.0,0.45410026]
[1756825874992,0.18967578,111390.0,111380.0,0.45410026]
[1756825875209,0.01012645,111390.0,111380.0,0.45410026]
[1756825875631,0.18967578,111390.0,111380.0,0.45410026]
[1756825875856,0.01012645,111390.0,111380.0,0.45410026]
[1756825876914,0.01012645,111390.0,111380.0,0.45406026]
[1756825877542,0.01012645,111390.0,111380.0,0.45410026]
[1756825878407,0.01012645,111390.0,111380.0,1.45390811]
[1756825878828,0.01012645,111390.0,111380.0,0.63242026]
[1756825879028,0.01012645,111390.0,111380.0,0.79398026]
[1756825879253,0.01012645,111390.0,111380.0,0.63242026]
[1756825879461,0.84948363,111390.0,111380.0,0.25355599]
[1756825879688,0.84948363,111390.0,111380.0,0.25367599]
[1756825880121,0.84948363,111390.0,111380.0,0.27461481]
[1756825880359,0.84948363,111390.0,111380.0,0.11285481]
[1756825880568,0.84948363,111390.0,111380.0,0.27453481]
[1756825880785,0.84948363,111390.0,111380.0,0.45410026]
[1756825881041,0.84948363,111390.0,111380.0,0.11285481]
[1756825881256,0.18967578,111390.0,111380.0,0.27453481]
[1756825881460,0.84948363,111390.0,111380.0,0.27453481]
[1756825881899,0.84948363,111390.0,111380.0,0.11285481]
[1756825882105,0.18967578,111390.0,111380.0,0.11285481]
[1756825882343,0.01012645,111390.0,111380.0,0.29242026]
[1756825882557,0.18967578,111390.0,111380.0,0.45398026]
[1756825883166,0.01012645,111390.0,111380.0,0.45398026]
[1756825883744,0.18967578,111390.0,111380.0,0.45398026]
[1756825883951,0.01012645,111390.0,111380.0,0.45398026]
[1756825884156,0.18967578,111390.0,111380.0,0.45398026]
[1756825884539,0.01012645,111390.0,111380.0,0.45398026]
[1756825884739,0.01012645,111390.0,111380.0,0.79398026]
[1756825885401,0.01012645,111390.0,111380.0,1.45378811]
[1756825885934,0.01012645,111390.0,111380.0,0.79398026]
[1756825886404,0.01012645,111390.0,111380.0,1.19398026]
[1756825886617,0.01012645,111390.0,111380.0,1.19390026]
[1756825887588,0.01012645,111390.0,111380.0,0.63242026]
[1756825887790,0.01012645,111390.0,111380.0,0.79386026]
[1756825888208,0.01012645,111390.0,111380.0,1.50366811]
[1756825888740,0.01012645,111390.0,111380.0,1.50362811]
[1756825889385,1e-08,111390.0,111380.0,1.55362811]
[1756825889832,1e-08,111390.0,111380.0,1.95362811]
[1756825889993,1e-08,111390.0,111380.0,2.19098811]
[1756825890938,0.0002,111440.0,111430.0,0.17948487]
[1756825891112,0.00905935,111440.0,111430.0,0.75862085]
[1756825891323,0.00066993,111440.0,111430.0,0.49612086]
[1756825891520,0.00066993,111440.0,111430.0,0.33468086]
[1756825891732,0.00066993,111440.0,111430.0,0.49604086]
[1756825891932,0.1801387,111440.0,111430.0,0.33468086]
[1756825892136,0.00066993,111440.0,111430.0,0.49604086]
[1756825893125,0.00066993,111440.0,111430.0,0.83604086]
[1756825893332,0.00066993,111440.0,111430.0,1.51678753]
[1756825894644,0.00066993,111440.0,111430.0,0.69561968]
[1756825894855,0.00066993,111440.0,111430.0,1.51662753]
[1756825895690,0.00066993,111440.0,111430.0,1.56662753]
[1756825896251,0.00066993,111440.0,111430.0,1.61662753]
[1756825896450,0.00066993,111440.0,111430.0,1.61654753]
[1756825897094,0.00066993,111440.0,111430.0,1.61650753]
[1756825897310,0.00066993,111440.0,111430.0,2.01650753]
[1756825898204,0.00066993,111440.0,111430.0,2.05712202]
[1756825898995,0.00066993,111440.0,111430.0,1.23623417]
[1756825899376,0.00066993,111440.0,111430.0,2.05712202]
[1756825899581,0.00066993,111440.0,111430.0,1.89604202]
[1756825899791,0.00066993,111440.0,111430.0,2.05712202]
[1756825899998,0.00066993,111440.0,111430.0,1.89604202]
[1756825900210,0.00066993,111440.0,111430.0,1.11529535]
[1756825900410,0.00066993,111440.0,111430.0,1.79604202]
[1756825900621,0.00066993,111440.0,111430.0,1.95712202]
[1756825901422,0.00066993,111440.0,111430.0,1.29731417]
[1756825901639,0.00066993,111440.0,111430.0,0.77529535]
[1756825901840,0.00066993,111440.0,111430.0,0.93637535]
[1756825902039,0.00066993,111440.0,111430.0,1.5961832]
[1756825902247,0.00066993,111440.0,111430.0,1.9361832]
[1756825902609,0.00066993,111440.0,111430.0,1.95712202]
[1756825902817,0.00066993,111440.0,111430.0,2.05712202]
[1756825903409,0.0002,111470.0,111460.0,0.54037538]
[1756825903644,0.00034089,111470.0,111460.0,1.77887921]
[1756825904390,0.00034089,111470.0,111460.0,1.61783921]
[1756825904590,0.00034089,111470.0,111460.0,1.11907136]
[1756825904970,0.00034089,111470.0,111460.0,0.95803136]
[1756825905190,0.00034089,111470.0,111460.0,2.17887921]
[1756825905589,0.00034089,111470.0,111460.0,1.94211134]
[1756825906420,0.00034089,111470.0,111460.0,1.67961135]
[1756825906627,0.00034089,111470.0,111460.0,1.51857135]
[1756825906841,0.00034089,111470.0,111460.0,1.67961135]